Workbook

Sheet Part A
B1: Part A - District-Level Information | F1: School District Name | G1: East Syracuse Minoa
F2: BEDS Code | G2: 420401
F3: School Year | G3: 2020-21
B4: I) Contact Information
E5: Mailing Address
B6: Contact First & Last Name | C6: Katherine Skahen | E6: Street Address Line 1 | G6: 407 Fremont Road
B7: Title of Contact | C7: Executive Director of School Business Admini | E7: Street Address Line 2
B8: Email Address | C8: kskahen@esmschools.org | E8: City | G8: East Syracuse
B9: Phone Number | C9: 3154343004 | E9: Zip Code | G9: 13057
B11: II) Total Amount of District Spending Allocated to Individual Schools
D12: Funding Source
B13: A) Total Major Operating Funds Spending | C13: Total Spending | D13: State/Local | E13: Federal
B14: General Fund Total Expenditures & Transfers | C14: =SUM(D14:E14) -> $84,149,032 | D14: $83,678,538 | E14: $470,494
B15: Special Aid Fund Total Expenditures & Transfers | C15: =SUM(D15:E15) -> $3,394,633 | D15: $2,134,290 | E15: $1,260,343
B16: School Food Services Fund Total Expenditures & Transfers | C16: =SUM(D16:E16) -> $1,397,731 | D16: $475,731 | E16: $922,000
B17: Debt Service Fund Total Expenditures & Transfers | C17: =SUM(D17:E17) -> $0 | D17: $0 | E17: $0
B18: Total Major Operating Funds Spending | C18: =SUM(C14:C17) -> $88,941,396 | D18: =SUM(D14:D17) -> $86,288,559 | E18: =SUM(E14:E17) -> $2,652,837
D20: Funding Source
B21: B) Exclusions for Non-Instructional Costs | C21: Total Spending | D21: State/Local | E21: Federal
B22: Interfund Transfers | C22: =SUM(D22:E22) -> $635,000 | D22: $635,000 | E22: $0
B23: Debt Service | C23: $6,204,406 | D23: $6,204,406 | E23: $0
B24: School Food Services Fund | C24: $1,397,731 | D24: $475,731 | E24: $922,000
B25: Community Services | C25: $2,351 | D25: $2,351 | E25: $0
B26: Adult/Continuing Education | C26: $0 | D26: $0 | E26: $0
B27: Transportation | C27: $3,986,891 | D27: $3,903,506 | E27: $83,385
B28: Employee Benefits Allocated to Above Purposes (see IV below) | C28: $1,315,573 | D28: $1,289,449 | E28: $26,124
B29: Total Non-Instructional Cost Exclusions | C29: =SUM(C22:C28) -> $13,541,952 | D29: =SUM(D22:D28) -> $12,510,443 | E29: =SUM(E22:E28) -> $1,031,509
D31: Funding Source
B32: C) Exclusions for Tuition/Payments to Non-District Schools | C32: Total Spending | D32: State/Local | E32: Federal | F32: Total Pupils | G32: Per Pupil
B33: Charter School Tuition | C33: =SUM(D33:E33) -> $115,826 | D33: $115,826 | E33: $0 | F33: 8 | G33: $14,478.25
B34: Services Provided to Charter Schools | C34: $0 | D34: $0 | E34: $0 | F34: 0 | G34: $0.00
B35: Other School Districts (Excl. Special Act Districts) | C35: $69,215 | D35: $69,215 | E35: $0 | F35: 3 | G35: $23,071.67
B36: Prekindergarten Community-Based Organizations | C36: $0 | D36: $0 | E36: $0 | F36: 0 | G36: $0.00
B37: BOCES Instructional Programs (Full-time Only) | C37: $2,782,477 | D37: $2,782,477 | E37: $0 | F37: 40 | G37: $69,561.93
B38: SWD School Age-School Year Tuition | C38: $486,000 | D38: $486,000 | E38: $0 | F38: 5 | G38: $97,200.00
B39: SWD Early Intervention Program Tuition | C39: $0 | D39: $0 | E39: $0 | F39: 0 | G39: $0.00
B40: SWD - Preschool Education (§4410) Tuition | C40: $0 | D40: $0 | E40: $0 | F40: 0 | G40: $0.00
B41: SWD - Summer Education (§4408) Tuition | C41: $131,583 | D41: $131,583 | E41: $0 | F41: 59 | G41: $2,230.22
B42: State-Supported Schools for the Blind & Deaf (§4201) Tuition | C42: $0 | D42: $0 | E42: $0 | F42: 0 | G42: $0.00
B43: Services Provided to Nonpublic Schools | C43: $178,908 | D43: $140,343 | E43: $38,565 | F43: 34 | G43: $5,262.00
B44: Other Expenses for Pupils in Non-Traditional Settings | C44: $0 | D44: $0 | E44: $0 | F44: 0 | G44: $0.00
B45: Employee Benefits Allocated to Above Purposes (see IV below) | C45: $0 | D45: $0 | E45: $0
B46: Total Tuition/Payments to Non-District Schools Exclusions | C46: =SUM(C33:C45) -> $3,764,009 | D46: =SUM(D33:D45) -> $3,725,444 | E46: =SUM(E33:E45) -> $38,565
B48: Total Exclusions | C48: =SUM(C29,C46) -> $17,305,961 | D48: =SUM(D29,D46) -> $16,235,887 | E48: =SUM(E29,E46) -> $1,070,074
B50: D) Projected 2020-21 Enrollment
B51: Total District K-12 Enrollment | C51: 3,136
B52: Total District Pre-K Enrollment | C52: 279
B53: Total Preschool Special Education Enrollment | C53: 0
B54: Total District Enrollment | C54: =SUM(C51:C53) -> 3,415
B56: Total Funding Allocated to Individual Schools | C56: =C18-C48 -> $71,635,435 | D56: =D18-D48 -> $70,052,672 | E56: =E18-E48 -> $1,582,763
B57: Total Allocated Funding per Pupil | C57: =IFERROR(C56/$C$54,"") -> $20,976.70 | D57: =IFERROR(SUM(D56)/SUM($C$54),"") -> $20,513.23 | E57: =IFERROR(SUM(E56)/SUM($C$54),"") -> $463.47
B59: III) Central District Costs Included in School Allocations
D60: Funding Source | F60: Total Staff | G60: Total
B61: A) General Support Costs | C61: Total Spending | D61: State/Local | E61: Federal | F61: (FTE Basis) | G61: FTE Spending
B62: Board of Education | C62: =SUM(D62:E62) -> $36,978 | D62: $36,978 | E62: $0 | F62: 0.0 | G62: $0.00
B63: Central Personnel | C63: =SUM(D63:E63) -> $1,544,750 | D63: $1,544,750 | E63: $0 | F63: 16.0 | G63: $96,546.88
B64: Operation and Maintenance of Plant | C64: =SUM(D64:E64) -> $5,328,682 | D64: $5,246,799 | E64: $81,883 | F64: 50.0 | G64: $106,573.64
B65: Other Central Services | C65: =SUM(D65:E65) -> $636,035 | D65: $636,035 | E65: $0 | F65: 0.0 | G65: $0.00
B66: Employee Benefits for General Support Staff (see IV below) | C66: =SUM(D66:E66) -> $1,793,908 | D66: $1,793,908 | E66: $0
B67: Total General Support Costs | C67: =SUM(C62:C66) -> $9,340,353 | D67: =SUM(D62:D66) -> $9,258,470 | E67: =SUM(E62:E66) -> $81,883 | F67: =SUM(F62:F65) -> 66.0
B68: Total General Support Costs per Pupil | C68: =IFERROR(C67/$C$54,"") -> $2,735.10 | D68: =IFERROR(D67/$C$54,"") -> $2,711.12 | E68: =IFERROR(E67/$C$54,"") -> $23.98
D70: Funding Source | F70: Total Staff | G70: Total
B71: B) District Academic Support Costs | C71: Total Spending | D71: State/Local | E71: Federal | F71: (FTE Basis) | G71: FTE Spending
B72: Curriculum Development & Supervision | C72: =SUM(D72:E72) -> $536,792 | D72: $536,792 | E72: $0 | F72: 4.0 | G72: $134,198.00
B73: Research, Planning & Evaluation | C73: $0 | D73: $0 | E73: $0 | F73: 0.0 | G73: $0.00
B74: In-Service Training | C74: $107,304 | D74: $0 | E74: $107,304 | F74: 0.0 | G74: $0.00
B75: Committee on Special Education/Preschool Special Education | C75: $0 | D75: $0 | E75: $0 | F75: 0.0 | G75: $0.00
B76: Summer Programming and Services | C76: $0 | D76: $0 | E76: $0 | F76: 0.0 | G76: $0.00
B77: Other Districtwide Staff | C77: $0 | D77: $0 | E77: $0 | F77: 0.0 | G77: $0.00
B78: Employee Benefits for District Academic Support Staff (see IV below) | C78: $228,270 | D78: $213,719 | E78: $14,551
B79: Total District Academic Support Costs | C79: =SUM(C72:C78) -> $872,366 | D79: =SUM(D72:D78) -> $750,511 | E79: =SUM(E72:E78) -> $121,855 | F79: =SUM(F72:F77) -> 4.0
B80: Total District Academic Support Costs per Pupil | C80: =IFERROR(C79/$C$54,"") -> $255.45 | D80: =IFERROR(D79/$C$54,"") -> $219.77 | E80: =IFERROR(E79/$C$54,"") -> $35.68
B82: C) Other Post-Employment Benefits (OPEB) | C82: =SUM(D82:E82) -> $6,542,169 | D82: $6,542,169 | E82: $0
B83: Total OPEB per Pupil | C83: =IFERROR(C82/$C$54,"") -> $1,915.72 | D83: =IFERROR(D82/$C$54,"") -> $1,915.72 | E83: =IFERROR(E82/$C$54,"") -> $0.00
B85: Total Central District Costs Included in School Allocations | C85: =SUM(C67,C79,C82) -> $16,754,888 | D85: $16,551,150 | E85: $203,738
B86: Total Central District Costs per Pupil | C86: $4,906.26 | D86: $4,846.60 | E86: $59.66
B88: Total Funding Allocated to Individual Schools excl. Central Costs | C88: =C56-C85 -> $54,880,547 | D88: =D56-D85 -> $53,501,522 | E88: =E56-E85 -> $1,379,025
B89: Total Allocated Funding per Pupil | C89: =IFERROR(C88/$C$54,"") -> $16,070.44
B91: IV) District Average Fringe Rate for Allocation of Employee Benefits
B92: Total Employee Benefits in General Fund & Special Aid Fund | C92: $24,538,320
B93: Other Post-Employment Benefits | C93: =C82 -> $6,542,169
B94: Total Employee Benefits for Active Employees | C94: =C92-C93 -> $17,996,151
B95: Total Personal Service in General Fund & Special Aid Fund | C95: $43,210,718
B96: District Average Fringe Rate | C96: =IFERROR(ROUND(C94/C95,4),"0.00%") -> 41.65%

Sheet Part B
A1: Part B - Basic School-Level Information
E6: Grade Span | G6: School Status | K6: Projected Enrollment & Demographics | Q6: Projected Staffing (FTE Basis)
A7: BEDS Code | B7: School Name | C7: Local School Code | D7: School Type | E7: Lowest Grade | F7: Highest Grade | G7: Does this school serve its full planned grade span? (Y/N) | H7: If no, is this school opening this school year? (Y/N) | I7: Is the school scheduled to close? (Y/N) | J7: If so, what year? | K7: K-12 Enrollment | L7: Pre-K Enrollment | M7: Preschool Special Ed Enrollment | N7: K-12 FRPL Count | O7: K-12 ELL Count | P7: K-12 SWD Count | Q7: Classroom Teachers w/ 0-3 Years Experience | R7: Classroom Teachers w/ More than 3 Years Experience | S7: Para- professional Classroom Staff | T7: Principals & Other Admin Staff | U7: Pupil Support Services Staff | V7: All Remaining Staff | W7: Total Staff | X7: Total Classroom Teachers | Y7: Total Non Teaching Staff
A8: 420401060001 | B8: PARK HILL SCHOOL | C8: 09 | D8: Pre-K Only | E8: Pre-K | F8: Pre-K | G8: Yes | I8: No | K8: 0 | L8: 279 | M8: 0 | N8: 0 | O8: 0 | P8: 0 | Q8: 1.0 | R8: 11.0 | S8: 6.0 | T8: 1.0 | U8: 1.0 | V8: 1.0 | W8: =SUM(Q8:V8) -> 21.0 | X8: =SUM(Q8:R8) -> 12.0 | Y8: =SUM(S8:V8) -> 9.0
A9: 420401060002 | B9: FREMONT ELEMENTARY SCHOOL | C9: 06 | D9: Elementary School | E9: K | F9: 5 | G9: Yes | I9: No | K9: 338 | L9: 0 | M9: 0 | N9: 78 | O9: 4 | P9: 60 | Q9: 4.0 | R9: 23.0 | S9: 16.0 | T9: 1.0 | U9: 5.0 | V9: 1.0 | W9: 50.0 | X9: 27.0 | Y9: 23.0
A10: 420401060003 | B10: EAST SYRACUSE ELEMENTARY SCHOOL | C10: 05 | D10: Elementary School | E10: K | F10: 5 | G10: Yes | I10: No | K10: 338 | L10: 0 | M10: 0 | N10: 225 | O10: 21 | P10: 80 | Q10: 2.0 | R10: 32.0 | S10: 19.0 | T10: 1.0 | U10: 7.0 | V10: 1.0 | W10: 62.0 | X10: 34.0 | Y10: 28.0
A11: 420401060004 | B11: WOODLAND ELEMENTARY SCHOOL | C11: 10 | D11: Elementary School | E11: K | F11: 5 | G11: Yes | I11: No | K11: 269 | L11: 0 | M11: 0 | N11: 94 | O11: 15 | P11: 37 | Q11: 3.0 | R11: 28.0 | S11: 12.0 | T11: 1.0 | U11: 7.0 | V11: 1.0 | W11: 52.0 | X11: 31.0 | Y11: 21.0
A12: 420401060005 | B12: EAST SYRACUSE MINOA CENTRAL HIGH SCHOOL | C12: 01 | D12: Senior High School | E12: 9 | F12: 12 | G12: Yes | I12: No | K12: 1,053 | L12: 0 | M12: 0 | N12: 447 | O12: 17 | P12: 181 | Q12: 8.0 | R12: 88.0 | S12: 33.0 | T12: 4.0 | U12: 11.0 | V12: 9.0 | W12: 153.0 | X12: 96.0 | Y12: 57.0
A13: 420401060009 | B13: MINOA ELEMENTARY SCHOOL | C13: 08 | D13: Elementary School | E13: K | F13: 5 | G13: Yes | I13: No | K13: 371 | L13: 0 | M13: 0 | N13: 146 | O13: 1 | P13: 80 | Q13: 5.0 | R13: 29.0 | S13: 32.0 | T13: 1.0 | U13: 8.0 | V13: 1.0 | W13: 76.0 | X13: 34.0 | Y13: 42.0
A14: 420401060010 | B14: PINE GROVE MIDDLE SCHOOL | C14: 04 | D14: Middle/Junior High School | E14: 6 | F14: 8 | G14: Yes | I14: No | K14: 767 | L14: 0 | M14: 0 | N14: 317 | O14: 13 | P14: 127 | Q14: 10.0 | R14: 58.0 | S14: 15.0 | T14: 3.0 | U14: 10.0 | V14: 4.0 | W14: 100.0 | X14: 68.0 | Y14: 32.0
A15: District Total | K15: =SUM(K8:K14) -> 3,136 | L15: 279 | M15: 0 | N15: 1,307 | O15: 71 | P15: 565 | Q15: 33.0 | R15: 269.0 | S15: 133.0 | T15: 12.0 | U15: 49.0 | V15: 18.0 | W15: 514.0 | X15: 302.0 | Y15: 212.0

Sheet Part C
A1: Part C - Basic School-Level Allocations
A3: Number of district-operated schools:
D5: School Allocation by Object (excl. Central Costs) | J5: School Allocation by Purpose (excl. Central Costs) | R5: Funding Source by School | U5: Per Pupil Allocation
D6: Personal Service | J6: General Education | L6: Special Education | N6: Instructional Support
A7: BEDS Code | B7: School Name | C7: Local School Code | D7: Classroom Teachers | E7: All Other Salaries | F7: Employee Benefits | G7: BOCES Services | H7: All Other | I7: Total Allocation by Object | J7: General Ed K-12 | K7: Pre-K | L7: Special Ed K- 12 | M7: Preschool | N7: School Administration | O7: Instructional Media | P7: Pupil Support Services | Q7: Total Allocation by Purpose | R7: State & Local Funding | S7: Federal Funding | T7: Total Funding Source by School | U7: State & Local Funding per Pupil | V7: Federal Funding per Pupil | W7: Central District Costs | X7: Total School Allocation w/ Central District Costs | Y7: Total School Funding per Pupil
A8: 420401060001 | B8: PARK HILL SCHOOL | C8: 09 | D8: $599,660 | E8: $314,906 | F8: $380,917 | G8: $0 | H8: $35,265 | I8: =SUM(D8:H8) -> $1,330,748 | J8: $0 | K8: $1,119,339 | L8: $0 | M8: $0 | N8: $159,853 | O8: $0 | P8: $51,555 | Q8: =SUM(J8:P8) -> $1,330,747 | R8: $1,330,748 | S8: $0 | T8: =SUM('Part C'!$R8:$S8) -> $1,330,748 | U8: $4,770 | V8: $0 | W8: $1,368,847 | X8: $2,699,595 | Y8: $9,676
A9: 420401060002 | B9: FREMONT ELEMENTARY SCHOOL | C9: 06 | D9: $2,322,693 | E9: $829,999 | F9: $1,313,096 | G9: $331,122 | H9: $154,657 | I9: $4,951,567 | J9: $3,104,894 | K9: $0 | L9: $922,400 | M9: $0 | N9: $193,646 | O9: $470,151 | P9: $260,477 | Q9: $4,951,568 | R9: $4,802,937 | S9: $148,632 | T9: =SUM('Part C'!$R9:$S9) -> $4,951,569 | U9: $14,210 | V9: $440 | W9: $1,658,317 | X9: $6,609,886 | Y9: $19,556
A10: 420401060003 | B10: EAST SYRACUSE ELEMENTARY SCHOOL | C10: 05 | D10: $2,892,113 | E10: $996,926 | F10: $1,619,785 | G10: $429,617 | H10: $160,366 | I10: $6,098,807 | J10: $3,580,989 | K10: $0 | L10: $1,595,422 | M10: $0 | N10: $245,334 | O10: $464,518 | P10: $212,635 | Q10: $6,098,898 | R10: $5,950,175 | S10: $148,632 | T10: =SUM('Part C'!$R10:$S10) -> $6,098,807 | U10: $17,604 | V10: $440 | W10: $1,658,317 | X10: $7,757,124 | Y10: $22,950
A11: 420401060004 | B11: WOODLAND ELEMENTARY SCHOOL | C11: 10 | D11: $2,706,566 | E11: $895,148 | F11: $1,500,114 | G11: $210,578 | H11: $122,687 | I11: $5,435,093 | J11: $3,606,453 | K11: $0 | L11: $1,122,545 | M11: $0 | N11: $196,006 | O11: $394,000 | P11: $116,088 | Q11: $5,435,092 | R11: $5,316,802 | S11: $118,290 | T11: =SUM('Part C'!$R11:$S11) -> $5,435,092 | U11: $19,765 | V11: $440 | W11: $1,319,785 | X11: $6,754,877 | Y11: $25,111
A12: 420401060005 | B12: EAST SYRACUSE MINOA CENTRAL HIGH SCHOOL | C12: 01 | D12: $8,839,214 | E12: $2,824,221 | F12: $4,857,821 | G12: $1,032,848 | H12: $796,626 | I12: $18,350,730 | J12: $11,055,894 | K12: $0 | L12: $3,617,507 | M12: $0 | N12: $701,384 | O12: $1,241,011 | P12: $1,734,933 | Q12: $18,350,729 | R12: $17,887,683 | S12: $463,046 | T12: =SUM('Part C'!$R12:$S12) -> $18,350,729 | U12: $16,987 | V12: $440 | W12: $5,166,295 | X12: $23,517,024 | Y12: $22,333
A13: 420401060009 | B13: MINOA ELEMENTARY SCHOOL | C13: 08 | D13: $2,837,175 | E13: $1,306,977 | F13: $1,726,039 | G13: $433,097 | H13: $172,818 | I13: $6,476,106 | J13: $3,445,120 | K13: $0 | L13: $2,165,962 | M13: $0 | N13: $215,410 | O13: $532,551 | P13: $117,064 | Q13: $6,476,107 | R13: $6,312,963 | S13: $163,143 | T13: =SUM('Part C'!$R13:$S13) -> $6,476,106 | U13: $17,016 | V13: $440 | W13: $1,820,224 | X13: $8,296,330 | Y13: $22,362
A14: 420401060010 | B14: PINE GROVE MIDDLE SCHOOL | C14: 04 | D14: $5,797,581 | E14: $2,033,730 | F14: $3,261,741 | G14: $714,917 | H14: $429,526 | I14: $12,237,495 | J14: $7,055,650 | K14: $0 | L14: $2,531,301 | M14: $0 | N14: $461,238 | O14: $954,838 | P14: $1,234,468 | Q14: $12,237,495 | R14: $11,900,215 | S14: $337,280 | T14: =SUM('Part C'!$R14:$S14) -> $12,237,495 | U14: $15,515 | V14: $440 | W14: $3,763,104 | X14: $16,000,599 | Y14: $20,861
A15: District Total | D15: =SUM(D8:D14) -> $25,995,002 | E15: $9,201,907 | F15: $14,659,513 | G15: $3,152,179 | H15: $1,871,945 | I15: $54,880,546 | J15: $31,849,000 | K15: $1,119,339 | L15: $11,955,137 | M15: $0 | N15: $2,172,871 | O15: $4,057,069 | P15: $3,727,220 | Q15: $54,880,636 | R15: $53,501,523 | S15: $1,379,023 | T15: $54,880,546 | W15: =SUM(W8:W14) -> $16,754,888 | X15: =SUM(X8:X14) -> $71,635,434

Sheet Part D
A1: Part D - School-Level Spending on Prekindergarten and Community Schools Programming
A3: Number of district-operated schools:
F5: Prekindergarten Programs | O5: Student, Family, and Community Schools Programs
F6: Projected Pre-K Enrollment | K6: Projected Pre-K Funding | P6: Spending by Purpose | W6: Funding Source by Program
A7: BEDS Code | B7: School Name | C7: Local School Code | D7: Does this school offer a Pre-K program? (Y/N) | E7: Does this school offer student/family support or community schools services? (Y/N) | F7: 4-Year-Old Full-Day | G7: 4-Year-Old Half-Day | H7: 3-Year-Old Full-Day | I7: 3-Year-Old Half-Day | J7: Total Pre-K Enrollment | K7: State Universal Pre-K Grants (UPK) | L7: Other State & Local Funding | M7: Federal Funding | N7: Total Pre-K Spending | O7: Community Schools Site Coordinator (FTE Basis) | P7: Enriched Academic Services | Q7: Health, Mental Health/ Counseling, Dental Care | R7: Nutrition Services | S7: Legal Services | T7: After-School Programs/ Extended Day Programs | U7: All Other | V7: Total Community Schools Spending | W7: Foundation Aid Community Schools Set-Aside | X7: Other State & Local Funding | Y7: Federal Funding
A8: 420401060001 | B8: PARK HILL SCHOOL | C8: 09 | D8: Yes | E8: No | F8: 0 | G8: 179 | H8: 0 | I8: 100 | J8: =SUM(F8:I8) -> 279 | K8: $435,676 | L8: $683,663 | M8: $0 | N8: =SUM(K8:M8) -> $1,119,339 | V8: =SUM(P8:U8) -> $0
A9: 420401060002 | B9: FREMONT ELEMENTARY SCHOOL | C9: 06 | D9: No | E9: No | J9: 0 | N9: $0 | V9: $0
A10: 420401060003 | B10: EAST SYRACUSE ELEMENTARY SCHOOL | C10: 05 | D10: No | E10: No | J10: 0 | N10: $0 | V10: $0
A11: 420401060004 | B11: WOODLAND ELEMENTARY SCHOOL | C11: 10 | D11: No | E11: No | J11: 0 | N11: $0 | V11: $0
A12: 420401060005 | B12: EAST SYRACUSE MINOA CENTRAL HIGH SCHOOL | C12: 01 | D12: No | E12: No | J12: 0 | N12: $0 | V12: $0
A13: 420401060009 | B13: MINOA ELEMENTARY SCHOOL | C13: 08 | D13: No | E13: No | J13: 0 | N13: $0 | V13: $0
A14: 420401060010 | B14: PINE GROVE MIDDLE SCHOOL | C14: 04 | D14: No | E14: No | J14: 0 | N14: $0 | V14: $0
A15: Total in District Schools | F15: =SUM(F8:F14) -> 0 | G15: 179 | H15: 0 | I15: 100 | J15: 279 | K15: $435,676 | L15: $683,663 | M15: $0 | N15: $1,119,339 | O15: 0.0 | P15: $0 | Q15: $0 | R15: $0 | S15: $0 | T15: $0 | U15: $0 | V15: $0 | W15: $0 | X15: $0 | Y15: $0
F18: Projected Pre-K CBO Enrollment | K18: Projected Pre-K CBO Funding
E19: # of CBO Sites | F19: 4-Year-Old Full-Day | G19: 4-Year-Old Half-Day | H19: 3-Year-Old Full-Day | I19: 3-Year-Old Half-Day | J19: Total Pre-K Enrollment | K19: State Universal Pre-K Grants (UPK) | L19: Other State & Local Funding | M19: Federal Funding | N19: Total Pre-K Spending
A20: Total in Prekindergarten Community-Based Organizations | E20: 0 | F20: 0 | G20: 0 | H20: 0 | I20: 0 | J20: =SUM(F20:I20) -> 0 | K20: $0 | L20: $0 | M20: $0 | N20: =SUM(K20:M20) -> $0
A22: District Total with CBOs | F22: =F15+F20 -> 0 | G22: 179 | H22: 0 | I22: 100 | J22: 279 | K22: $435,676 | L22: $683,663 | M22: $0 | N22: $1,119,339

Sheet Part E
A1: Part E - Locally Implemented Funding Formula
A2: Are schools allocated a sizeable portion of their funding via a locally implemented formula? | E2: No
A3: Number of district-operated schools:
A7: BEDS Code | B7: School Name | C7: Local School Code | D7: Local Formula Allocation | E7: Allocation If Local Formula Fully Funded | F7: Difference | G7: % Funded | H7: Total Funding (See Part C) | I7: Local Formula as % of Total Funding | J7: Other Funding
A8: 420401060001 | B8: PARK HILL SCHOOL | C8: 09
A9: 420401060002 | B9: FREMONT ELEMENTARY SCHOOL | C9: 06
A10: 420401060003 | B10: EAST SYRACUSE ELEMENTARY SCHOOL | C10: 05
A11: 420401060004 | B11: WOODLAND ELEMENTARY SCHOOL | C11: 10
A12: 420401060005 | B12: EAST SYRACUSE MINOA CENTRAL HIGH SCHOOL | C12: 01
A13: 420401060009 | B13: MINOA ELEMENTARY SCHOOL | C13: 08
A14: 420401060010 | B14: PINE GROVE MIDDLE SCHOOL | C14: 04
A15: District Total | D15: =SUM(D8:D14) -> $0 | E15: =SUM(E8:E14) -> $0 | F15: =SUM(F8:F14) -> $0 | H15: =SUM(H8:H14) -> $0 | J15: =SUM(J8:J14) -> $0

Sheet Drop-downs (hidden)
A1: School Type | B1: Grades | C1: Y/N
A2: Elementary School | B2: Pre-K | C2: Yes
A3: Junior-Senior High School | B3: 2017-18 | C3: No | D3: Elementary School | F3: Pre-K | H3: 2020 | I3: 2015
A4: K-12 School | B4: 2018-19 | D4: Pre-K Only | F4: K | H4: 2021 | I4: 2016
A5: K-8 School | B5: 2019-20 | D5: Middle/Junior High School | F5: 1 | H5: 2022 | I5: 2017
A6: Middle/Junior High School | B6: 2020-21 | D6: Junior-Senior High School | F6: 2 | H6: 2023 | I6: 2018
A7: NYC - District 75 | B7: 4 | D7: Senior High School | F7: 3 | I7: 2019
A8: NYC - YABC | B8: 5 | D8: K-8 School | F8: 4 | I8: 2020
A9: Other | B9: 6 | D9: K-12 School | F9: 5 | I9: 2021
A10: Pre-K Only | B10: 7 | D10: Other | F10: 6
A11: Senior High School | B11: 8 | D11: NYC - District 75 | F11: 7
B12: 9 | D12: NYC - YABC | F12: 8
B13: 10 | F13: 9
B14: 11 | F14: 10
B15: 12 | F15: 11
B16: NYC - District 75 | F16: 12
B17: NYC - YABC | F17: NYC - District 75
B18: Other | F18: NYC - YABC
F19: Other
